fUSD/lending_fUSD_20250606
["ID","MTS","AMOUNT","RATE_DAILY","PERIOD"]
[364726173,1749220266548,-1448.58,0.00030493,7]
[364726174,1749220266558,-480.0,0.00030493,7]
[364726175,1749220266568,-161.264243,0.00030493,7]
[364726176,1749220266578,-480.0,0.00030493,7]
[364726177,1749220266588,-161.264243,0.00030493,7]
[364726178,1749220266599,-480.0,0.00030493,7]
[364726179,1749220266609,-1087.78,0.00030493,7]
[364726180,1749220266619,-596.02,0.00030493,7]
[364726181,1749220266629,-1086.7,0.00030493,7]
[364726182,1749220266639,-1926.02,0.00030493,7]
[364726183,1749220266649,-161.264243,0.00030493,7]
[364726184,1749220266660,-480.0,0.00030493,7]
[364726185,1749220266672,-161.264243,0.00030493,7]
[364726186,1749220266683,-1310.18,0.00030493,7]
[364726187,1749220266694,-480.01,0.00030493,7]
[364726188,1749220266704,-971.77,0.00030493,7]
[364726189,1749220266715,-2065.59,0.00030493,7]
[364726190,1749220266725,-480.0,0.00030493,7]
[364726191,1749220266735,-13307.39,0.00030493,7]
[364726192,1749220266745,-2324.9,0.00030493,7]
[364726193,1749220266755,-824.21,0.00030493,7]
[364726194,1749220266766,-480.0,0.00030493,7]
[364726195,1749220267013,-2178.92,0.00030493,7]
[364726196,1749220267023,-3945.0,0.00030493,7]
[364726197,1749220267033,-480.0,0.00030493,7]
[364726198,1749220267043,-480.0,0.00030493,7]
[364726199,1749220267053,-4149.78,0.00030493,7]
[364726200,1749220267062,-3813.84,0.00030493,7]
[364726201,1749220267072,-1365.76,0.00030493,7]
[364726202,1749220267082,-984.68,0.00030493,7]
[364726203,1749220267091,-904.26,0.00030493,7]
[364726204,1749220267101,-480.0,0.00030493,7]
[364726205,1749220267111,-151.0,0.00030493,7]
[364726206,1749220267121,-480.0,0.00030493,7]
[364726207,1749220267131,-151.0,0.00030493,7]
[364726208,1749220267141,-1112.93,0.00030493,7]
[364726209,1749220267151,-4903.83,0.00030493,7]
[364726210,1749220267160,-813.56,0.00030493,7]
[364726211,1749220267171,-1976.97,0.00030493,7]
[364726212,1749220267180,-3642.55,0.00030493,7]
[364726213,1749220267190,-2033.72,0.00030493,7]
[364726214,1749220267200,-498.6571033,0.00030493,7]
[364726215,1749220267210,-1600.26,0.00030493,7]
[364726216,1749220267220,-878.97,0.00030493,7]
[364726217,1749220267230,-480.0,0.00030493,7]
[364726218,1749220267239,-480.0,0.00030493,7]
[364726219,1749220267250,-480.0,0.00030493,7]
[364726220,1749220267260,-948.36,0.00030493,7]
[364726221,1749220267269,-10382.45,0.00030493,7]
[364726222,1749220267279,-520.79,0.00030493,7]
[364726223,1749220267289,-201.32107364,0.00030493,7]
[364726224,1749220267299,-480.0,0.00030493,7]
[364726225,1749220267309,-3570.9,0.00030493,7]
[364726226,1749220267319,-1399.06,0.00030493,2]
[364726227,1749220267329,-875.0,0.00030493,7]
[364726228,1749220267339,-1610.11,0.00030493,7]
[364726229,1749220267350,-506.97,0.00030493,7]
[364726230,1749220267360,-582.82,0.00030493,7]
[364726231,1749220267374,-1069.2,0.00030493,7]
[364726232,1749220267385,-5037.96,0.00030493,7]
[364726233,1749220267395,-480.0,0.00030493,7]
[364726234,1749220267405,-1221.01,0.00030493,7]
[364726235,1749220267415,-500.0,0.00030493,7]
[364726236,1749220267426,-632.52,0.00030493,7]
[364726237,1749220267436,-498.96160582,0.00030493,7]
[364726238,1749220267446,-2746.68,0.00030493,7]
[364726239,1749220267458,-480.0,0.00030493,7]
[364726240,1749220267468,-1159.49,0.00030493,7]
[364726241,1749220267478,-646.0,0.00030493,7]
[364726242,1749220267488,-1726.11,0.00030493,7]
[364726243,1749220267499,-480.0,0.00030493,7]
[364726244,1749220267508,-4017.92,0.00030493,7]
[364726245,1749220267518,-4678.49,0.00030493,7]
[364726246,1749220267528,-480.0,0.00030493,7]
[364726247,1749220267539,-480.0,0.00030493,7]
[364726248,1749220267549,-1324.34,0.00030493,7]
[364726249,1749220267559,-576.09,0.00030493,7]
[364726250,1749220267569,-1223.35,0.00030493,7]
[364726251,1749220267579,-619.71,0.00030493,7]
[364726252,1749220267589,-1000.0,0.00030493,7]
[364726253,1749220267599,-151.44515001,0.00030493,7]
[364726254,1749220267608,-480.0,0.00030493,7]
[364726255,1749220267618,-480.0,0.00030493,7]
[364726256,1749220267628,-480.0,0.00030493,7]
[364726257,1749220267637,-480.0,0.00030493,7]
[364726258,1749220267647,-480.0,0.00030493,7]
[364726259,1749220267656,-2298.56,0.00030493,7]
[364726260,1749220267667,-1792.53,0.00030493,7]
[364726261,1749220267678,-783.46,0.00030493,7]
[364726262,1749220267688,-488.06,0.00030493,7]
[364726263,1749220267698,-358.71419016,0.00030493,7]
[364726264,1749220267707,-480.0,0.00030493,7]
[364726265,1749220267717,-480.0,0.00030493,7]
[364726266,1749220267727,-4227.26,0.00030493,7]
[364726267,1749220267737,-4126.83,0.00030493,7]
[364726268,1749220267746,-985.6,0.00030493,7]
[364726269,1749220267756,-558.35,0.00030493,7]
[364726270,1749220267766,-480.0,0.00030493,7]
[364726271,1749220267776,-500.0,0.00030493,7]
[364726272,1749220267789,-397.07024598,0.00030493,7]
[364726273,1749220267799,-480.0,0.00030493,7]
[364726274,1749220267810,-1349.15,0.00030493,7]
[364726275,1749220267819,-480.0,0.00030493,7]
[364726276,1749220267829,-480.0,0.00030493,7]
[364726277,1749220267839,-480.0,0.00030493,7]
[364726278,1749220267849,-946.38,0.00030493,7]
[364726279,1749220267859,-480.0,0.00030493,7]
[364726280,1749220267870,-1957.15,0.00030493,7]
[364726281,1749220267880,-1972.33,0.00030493,7]
[364726282,1749220267890,-869.99,0.00030493,7]
[364726283,1749220267900,-667.66,0.00030493,7]
[364726284,1749220267911,-788.43,0.00030493,7]
[364726285,1749220267921,-480.0,0.00030493,7]
[364726286,1749220267932,-151.0,0.00030493,7]
[364726287,1749220267942,-752.97,0.00030493,7]
[364726288,1749220267951,-480.0,0.00030493,7]
[364726289,1749220267962,-159.305696,0.00030493,7]
[364726290,1749220267972,-2371.57,0.00030493,7]
[364726291,1749220267982,-480.0,0.00030493,7]
[364726292,1749220267992,-480.0,0.00030493,7]
[364726293,1749220268002,-601.08,0.00030493,7]
[364726294,1749220268012,-480.0,0.00030493,7]
[364726295,1749220268022,-2258.41,0.00030493,7]
[364726296,1749220268031,-480.0,0.00030493,7]
[364726297,1749220268040,-480.0,0.00030493,7]
[364726298,1749220268051,-617.19,0.00030493,7]
[364726299,1749220268060,-957.11,0.00030493,7]
[364726300,1749220268070,-661.16,0.00030493,7]
[364726301,1749220268080,-480.0,0.00030493,7]
[364726302,1749220268089,-15596.64,0.00030493,7]
[364726303,1749220268099,-412.84101312,0.00030493,7]
[364726304,1749220268109,-1003.28,0.00030493,7]
[364726305,1749220268119,-480.0,0.00030493,7]
[364726306,1749220268128,-1277.26,0.00030493,7]
[364726307,1749220268139,-480.0,0.00030493,7]
[364726308,1749220268148,-1738.04,0.00030493,7]
[364726309,1749220268159,-846.81,0.00030493,7]
[364726310,1749220268168,-480.0,0.00030493,7]
[364726311,1749220268180,-2129.46,0.00030493,7]
[364726312,1749220268190,-820.16,0.00030493,7]
[364726313,1749220268200,-1214.21,0.00030493,7]
[364726314,1749220268210,-480.0,0.00030493,7]
[364726315,1749220268220,-2196.5,0.00030493,7]
[364726316,1749220268230,-923.4,0.00030493,7]
[364726317,1749220268239,-2461.07,0.00030493,7]
[364726318,1749220268249,-480.0,0.00030493,7]
[364726319,1749220268259,-2342.28,0.00030493,7]
[364726320,1749220268268,-2121.81,0.00030493,7]
[364726321,1749220268278,-1254.9,0.00030493,7]
[364726322,1749220268288,-480.0,0.00030493,7]
[364726323,1749220268298,-1793.96,0.00030493,7]
[364726324,1749220268308,-896.54,0.00030493,7]
[364726325,1749220268318,-686.83,0.00030493,7]
[364726326,1749220268329,-2687.86,0.00030493,7]
[364726327,1749220268339,-480.0,0.00030493,7]
[364726328,1749220268348,-979.7,0.00030493,7]
[364726329,1749220268358,-480.0,0.00030493,7]
[364726330,1749220268367,-820.24,0.00030493,7]
[364726331,1749220268381,-761.13,0.00030493,2]
[364726332,1749220268390,-873.83,0.00030493,7]
[364726333,1749220268400,-1677.25,0.00030493,7]
[364726334,1749220268410,-480.0,0.00030493,7]
[364726335,1749220268421,-1293.09,0.00030493,7]
[364726336,1749220268432,-529.01,0.00030493,7]
[364726337,1749220268441,-1068.09,0.00030493,7]
[364726338,1749220268453,-787.96,0.00030493,7]
[364726339,1749220268463,-480.0,0.00030493,7]
[364726340,1749220268473,-1242.86,0.00030493,7]
[364726341,1749220268482,-11034.26,0.00030493,7]
[364726342,1749220268493,-480.0,0.00030493,7]
[364726343,1749220268502,-480.0,0.00030493,7]
[364726344,1749220268512,-564.91,0.00030493,7]
[364726345,1749220268522,-480.0,0.00030493,7]
[364726346,1749220268532,-480.0,0.00030493,7]
[364726347,1749220268541,-937.81,0.00030493,2]
[364726348,1749220268551,-480.0,0.00030493,7]
[364726349,1749220268561,-480.0,0.00030493,7]
[364726350,1749220268571,-671.61,0.00030493,7]
[364726351,1749220268582,-699.69,0.00030493,7]
[364726352,1749220268592,-151.0,0.00030493,7]
[364726353,1749220268602,-2147.96,0.00030493,7]
[364726354,1749220268611,-480.0,0.00030493,7]
[364726355,1749220268621,-569.84,0.00030493,7]
[364726356,1749220268631,-806.66,0.00030493,7]
[364726357,1749220268641,-1417.78,0.00030493,7]
[364726358,1749220268651,-720.25,0.00030493,7]
[364726359,1749220268660,-1409.97,0.00030493,7]
[364726360,1749220268672,-480.0,0.00030493,7]
[364726361,1749220268681,-480.0,0.00030493,7]
[364726362,1749220268691,-480.0,0.00030493,7]
[364726363,1749220268701,-1915.93,0.00030493,7]
[364726364,1749220268711,-151.0,0.00030493,7]
[364726365,1749220268721,-1184.01,0.00030493,7]
[364726366,1749220268732,-1233.97,0.00030493,7]
[364726367,1749220268742,-1107.18,0.00030493,7]
[364726368,1749220268752,-480.0,0.00030493,7]
[364726369,1749220268761,-480.0,0.00030493,7]
[364726370,1749220268770,-151.0,0.00030493,7]
[364726371,1749220268780,-480.0,0.00030493,7]
[364726372,1749220268789,-480.0,0.00030493,7]
[364726373,1749220268798,-480.0,0.00030493,7]
[364726374,1749220268808,-239.4279877,0.00030493,7]
[364726375,1749220268819,-186.88884126,0.00030493,7]
[364726376,1749220268828,-150.0,0.00030495,7]
[364726377,1749220268838,-150.0,0.00030495,7]
[364726378,1749220268847,-1000.0,0.000305,14]
[364726379,1749220268860,-941.1604,0.000305,2]
[364726380,1749220268869,-941.1604,0.000305,2]
[364726381,1749220268879,-480.5817,0.000305,2]
[364726382,1749220268889,-480.5817,0.000305,2]
[364726383,1749220268900,-150.0,0.00030503,7]
[364726384,1749220268912,-150.0,0.00030506,7]
[364726385,1749220268922,-150.0,0.00030506,7]
[364726386,1749220268933,-239.4279877,0.00030507,7]
[364726387,1749220268943,-186.88884126,0.00030507,7]
[364726388,1749220268952,-150.0,0.00030516,7]
[364726389,1749220268962,-239.4279877,0.0003052,7]
[364726390,1749220268972,-186.88884126,0.0003052,7]
[364726391,1749220268982,-500.0,0.0003052,7]
[364726392,1749220268993,-500.0,0.0003052,7]
[364726393,1749220269002,-150.0,0.0003052,7]
[364726394,1749220269012,-500.0,0.0003052,7]
[364726395,1749220269022,-150.0,0.0003052,7]
[364726396,1749220269031,-500.0,0.0003052,7]
[364726397,1749220269041,-428.0,0.0003052,2]
[364726398,1749220269051,-927.0,0.0003052,7]
[364726399,1749220269061,-150.0,0.0003052,7]
[364726400,1749220269071,-500.0,0.0003052,7]
[364726401,1749220269081,-646.0,0.0003052,7]
[364726402,1749220269090,-500.0,0.0003052,7]
[364726403,1749220269101,-504.06037281,0.00030521,5]
[364726404,1749220269110,-1000.0,0.00030521,5]
[364726405,1749220269120,-501.96261,0.00030521,5]
[364726406,1749220269129,-1005.68853577,0.00030521,23]
[364726407,1749220269139,-150.0,0.00030528,7]
[364726408,1749220269148,-150.0,0.00030528,7]
[364726409,1749220269157,-213.0,0.0003053,30]
[364726410,1749220269166,-211.0,0.0003053,2]
[364726411,1749220269176,-210.0,0.0003053,2]
[364726412,1749220269186,-203.0,0.0003053,2]
[364726413,1749220269196,-239.4279877,0.00030533,7]
[364726414,1749220269205,-186.88884126,0.00030533,7]
[364726415,1749220269214,-150.0,0.00030534,7]
[364726416,1749220269225,-150.0,0.00030534,7]
[364726417,1749220269235,-150.0,0.00030536,7]
[364726418,1749220269244,-60049.02908672,0.0003054,2]
[364726419,1749220269254,-212.0,0.0003054,30]
[364726420,1749220269263,-151.0,0.0003054,7]
[364726421,1749220269273,-151.0,0.0003054,7]
[364726422,1749220269283,-151.0,0.0003054,7]
[364726423,1749220269293,-151.0,0.0003054,7]
[364726424,1749220269304,-164.396546,0.0003054,7]
[364726425,1749220269315,-164.396546,0.0003054,7]
[364726426,1749220269326,-151.0,0.0003054,7]
[364726427,1749220269336,-151.0,0.0003054,7]
[364726428,1749220269347,-151.0,0.0003054,7]
[364726429,1749220269357,-151.0,0.0003054,7]
[364726430,1749220269367,-151.0,0.0003054,7]
[364726431,1749220269449,-151.0,0.0003054,7]
[364726432,1749220269462,-242.389166,0.0003054,7]
[364726433,1749220269472,-151.0,0.0003054,7]
[364726434,1749220269481,-839.7152,0.0003054,7]
[364726435,1749220269491,-839.7152,0.0003054,7]
[364726436,1749220269501,-234.971268,0.0003054,7]
[364726437,1749220269510,-234.971268,0.0003054,7]
[364726438,1749220269520,-151.0,0.0003054,7]
[364726439,1749220269530,-151.0,0.0003054,7]
[364726440,1749220269540,-1057.697866,0.0003054,7]
[364726441,1749220269550,-1057.697866,0.0003054,7]
[364726442,1749220269561,-151.0,0.0003054,7]
[364726443,1749220269571,-151.0,0.0003054,7]
[364726444,1749220269581,-151.0,0.0003054,7]
[364726445,1749220269592,-151.0,0.0003054,7]
[364726446,1749220269602,-239.139399,0.0003054,7]
[364726447,1749220269611,-151.0,0.0003054,7]
[364726448,1749220269621,-151.0,0.0003054,7]
[364726449,1749220269631,-239.4279877,0.00030547,7]
[364726450,1749220269640,-186.88884126,0.00030547,7]
[364726451,1749220269650,-500.0,0.00030548,7]
[364726452,1749220269659,-500.0,0.00030548,7]
[364726453,1749220269668,-150.0,0.00030548,7]
[364726454,1749220269679,-200.0,0.00030548,7]
[364726455,1749220269689,-150.0,0.00030548,7]
[364726456,1749220269699,-186.92298052,0.00030548,7]
[364726457,1749220269709,-428.0,0.00030548,2]
[364726458,1749220269718,-927.0,0.00030548,7]
[364726459,1749220269729,-500.0,0.00030548,7]
[364726460,1749220269738,-646.0,0.00030548,7]
[364726461,1749220269748,-500.0,0.00030548,7]
[364726462,1749220269758,-151.0,0.00030548,7]
[364726463,1749220269767,-210.982028,0.00030548,7]
[364726464,1749220269777,-210.982028,0.00030548,7]
[364726465,1749220269787,-151.0,0.00030548,7]
[364726466,1749220269797,-151.0,0.00030548,7]
[364726467,1749220269808,-151.0,0.00030548,7]
[364726468,1749220269818,-151.0,0.00030548,7]
[364726469,1749220269827,-173.795224,0.00030548,7]
[364726470,1749220269837,-173.795224,0.00030548,7]
[364726471,1749220269846,-155.941845,0.00030548,7]
[364726472,1749220269856,-242.735552,0.00030548,7]
[364726473,1749220269866,-242.735552,0.00030548,7]
[364726474,1749220269876,-151.0,0.00030548,7]
[364726475,1749220269885,-150.0,0.0003055,7]
[364726476,1749220269895,-150.0,0.0003055,7]
[364726477,1749220269904,-33212.937803,0.00030552,2]
[364726478,1749220269914,-150.0,0.00030556,7]
[364726479,1749220269925,-150.0,0.00030557,7]
[364726480,1749220269935,-165.046603,0.00030558,7]
[364726481,1749220269944,-165.046603,0.00030558,7]
[364726482,1749220269954,-151.0,0.00030558,7]
[364726483,1749220269963,-178.626492,0.00030558,7]
[364726484,1749220269973,-178.626492,0.00030558,7]
[364726485,1749220269983,-1360.080029,0.00030558,7]
[364726486,1749220269992,-1360.080029,0.00030558,7]
[364726487,1749220270001,-151.0,0.00030558,7]
[364726488,1749220270011,-2000.0,0.00030558,3]
[364726489,1749220270021,-2000.0,0.00030558,3]
[364726490,1749220270030,-239.4279877,0.0003056,7]
[364726491,1749220270040,-186.88884126,0.0003056,7]
[364726492,1749220270050,-150.0,0.00030562,7]
[364726493,1749220270060,-150.0,0.00030566,7]
[364726494,1749220270069,-150.0,0.00030572,7]
[364726495,1749220270079,-25874.1012178,0.00030573,2]
[364726496,1749220270089,-74527.9308772,0.00030573,2]
[364726497,1749220270098,-239.4279877,0.00030573,7]
[364726498,1749220270107,-186.88884126,0.00030573,7]
[364726499,1749220270117,-486.07300312,0.00030575,7]
[364726500,1749220270126,-500.0,0.00030575,7]
[364726501,1749220270135,-150.0,0.00030575,7]
[364726502,1749220270145,-200.0,0.00030575,7]
[364726503,1749220270155,-428.0,0.00030575,2]
[364726504,1749220270164,-927.0,0.00030575,7]
[364726505,1749220270177,-500.0,0.00030575,7]
[364726506,1749220270187,-646.0,0.00030575,7]
[364726507,1749220270197,-500.0,0.00030575,7]
[364726508,1749220270207,-150.0,0.00030578,7]
[364726509,1749220270217,-3056.1199227,0.00030579,2]
[364726510,1749220270227,-239.4279877,0.00030587,7]
[364726511,1749220270237,-186.88884126,0.00030587,7]
[364726512,1749220270246,-150.0,0.0003059,7]
[364726513,1749220270255,-150.0,0.00030594,7]
[364726514,1749220270265,-165.885412,0.00030594,7]
[364726515,1749220270274,-165.885412,0.00030594,7]
[364726516,1749220270284,-296.887823,0.00030594,7]
[364726517,1749220270294,-296.887823,0.00030594,7]
[364726518,1749220270304,-150.0,0.00030597,7]
[364726519,1749220270313,-150.0,0.00030598,7]
[364726520,1749220270323,-129870.38938406,0.000306,2]
[364726521,1749220270333,-151.0,0.000306,7]
[364726522,1749220270342,-151.0,0.000306,7]
[364726523,1749220270352,-151.0,0.000306,7]
[364726524,1749220270361,-151.0,0.000306,7]
[364726525,1749220270371,-151.0,0.000306,7]
[364726526,1749220270384,-151.0,0.000306,7]
[364726527,1749220270394,-151.0,0.000306,7]
[364726528,1749220270404,-151.0,0.000306,7]
[364726529,1749220270415,-1362.899122,0.000306,7]
[364726530,1749220270427,-1362.899122,0.000306,7]
[364726531,1749220270438,-238.695369,0.000306,7]
[364726532,1749220270448,-224.971363,0.000306,7]
[364726533,1749220270458,-151.0,0.000306,7]
[364726534,1749220270468,-224.971363,0.000306,7]
[364726535,1749220270478,-346.563624,0.000306,7]
[364726536,1749220270487,-346.563624,0.000306,7]
[364726537,1749220270496,-151.0,0.000306,7]
[364726538,1749220270506,-151.0,0.000306,7]
[364726539,1749220270516,-284.962048,0.000306,7]
[364726540,1749220270525,-151.0,0.000306,7]
[364726541,1749220270536,-239.4279877,0.000306,7]
[364726542,1749220270546,-186.88884126,0.000306,7]
[364726543,1749220270556,-555.92881309,0.00030603,7]
[364726544,1749220270565,-150.0,0.00030603,7]
[364726545,1749220270575,-428.0,0.00030603,2]
[364726546,1749220270585,-927.0,0.00030603,7]
[364726547,1749220270596,-500.0,0.00030603,7]
[364726548,1749220270607,-646.0,0.00030603,7]
[364726549,1749220270617,-500.0,0.00030603,7]
[364726550,1749220270626,-239.4279877,0.00030613,7]
[364726551,1749220270636,-186.88884126,0.00030613,7]
[364726552,1749220270646,-151.0,0.00030615,7]
[364726553,1749220270655,-6539.273502,0.00030615,7]
[364726554,1749220270664,-6539.273502,0.00030615,7]
[364726555,1749220270674,-8107.495235,0.00030615,2]
[364726556,1749220270683,-4802.0020709,0.00030615,2]
[364726557,1749220270692,-150.0,0.00030616,7]
[364726558,1749220270701,-150.0,0.00030618,7]
[364726559,1749220270711,-150.0,0.00030619,7]
[364726560,1749220270721,-300.65,0.00030623,2]
[364726561,1749220270730,-150.0,0.00030625,7]
[364726562,1749220270739,-239.4279877,0.00030627,7]
[364726563,1749220270750,-186.88884126,0.00030627,7]
[364726564,1749220270761,-150.0,0.00030629,7]
[364726565,1749220270770,-250.0,0.0003063,7]
[364726566,1749220270780,-428.0,0.0003063,2]
[364726567,1749220270792,-927.0,0.0003063,7]
[364726568,1749220270803,-500.0,0.0003063,7]
[364726569,1749220270813,-646.0,0.0003063,7]
[364726570,1749220270822,-500.0,0.0003063,7]
[364726571,1749220270832,-594.83,0.0003063,2]
[364726572,1749220270841,-151.0,0.00030636,7]
[364726573,1749220270851,-203.614888,0.00030636,7]
[364726574,1749220270861,-151.0,0.00030636,7]
[364726575,1749220270871,-210.982028,0.00030636,7]
[364726576,1749220270880,-210.982028,0.00030636,7]
[364726577,1749220270890,-151.0,0.00030636,7]
[364726578,1749220270900,-151.0,0.00030636,7]
[364726579,1749220270909,-164.396546,0.00030636,7]
[364726580,1749220270918,-164.396546,0.00030636,7]
[364726581,1749220270929,-197.095984,0.00030636,7]
[364726582,1749220270938,-151.0,0.00030636,7]
[364726583,1749220270949,-151.0,0.00030636,7]
[364726584,1749220270959,-151.0,0.00030636,7]
[364726585,1749220270969,-173.795224,0.00030636,7]
[364726586,1749220270978,-173.795224,0.00030636,7]
[364726587,1749220270988,-165.046603,0.00030636,7]
[364726588,1749220270997,-151.0,0.00030636,7]
[364726589,1749220271008,-165.046603,0.00030636,7]
[364726590,1749220271019,-151.0,0.00030636,7]
[364726591,1749220271028,-178.626492,0.00030636,7]
[364726592,1749220271037,-178.626492,0.00030636,7]
[364726593,1749220271046,-1360.080029,0.00030636,7]
[364726594,1749220271056,-1360.080029,0.00030636,7]
[364726595,1749220271065,-151.0,0.00030636,7]
[364726596,1749220271076,-151.0,0.00030636,7]
[364726597,1749220271085,-181.317118,0.00030636,7]
[364726598,1749220271095,-151.0,0.00030636,7]
[364726599,1749220271104,-242.735552,0.00030636,7]
[364726600,1749220271113,-242.735552,0.00030636,7]
[364726601,1749220271122,-151.0,0.00030636,7]
[364726602,1749220271132,-151.0,0.00030636,7]
[364726603,1749220271141,-265.507238,0.00030636,7]
[364726604,1749220271151,-839.7152,0.00030636,7]
[364726605,1749220271160,-839.7152,0.00030636,7]
[364726606,1749220271169,-234.971268,0.00030636,7]
[364726607,1749220271180,-234.971268,0.00030636,7]
[364726608,1749220271189,-151.0,0.00030636,7]
[364726609,1749220271199,-151.0,0.00030636,7]
[364726610,1749220271208,-151.0,0.00030636,7]
[364726611,1749220271218,-1057.697866,0.00030636,7]
[364726612,1749220271227,-1057.697866,0.00030636,7]
[364726613,1749220271237,-194.343258,0.00030636,7]
[364726614,1749220271246,-151.0,0.00030636,7]
[364726615,1749220271256,-2054.5388344,0.00030636,2]
[364726616,1749220271265,-1894.8220346,0.00030636,2]
[364726617,1749220271275,-151.0,0.00030636,7]
[364726618,1749220271285,-2774.8034445,0.00030636,2]
[364726619,1749220271295,-7477.2305878,0.00030636,2]
[364726620,1749220271305,-23580.5700433,0.00030636,2]
[364726621,1749220271315,-151.0,0.00030636,7]
[364726622,1749220271324,-381.543116,0.00030636,7]
[364726623,1749220271334,-67921.6286373,0.00030636,2]
[364726624,1749220271344,-381.543116,0.00030636,7]
[364726625,1749220271353,-4440.4419675,0.00030636,2]
[364726626,1749220271363,-171.240678,0.00030636,7]
[364726627,1749220271374,-171.240678,0.00030636,7]
[364726628,1749220271388,-30387.4835445,0.00030636,2]
[364726629,1749220271398,-253.847817,0.00030636,7]
[364726630,1749220271408,-253.847817,0.00030636,7]
[364726631,1749220271418,-161.264243,0.00030636,7]
[364726632,1749220271429,-161.264243,0.00030636,7]
[364726633,1749220271438,-150.0,0.00030638,7]
[364726634,1749220271448,-150.0,0.00030639,7]
[364726635,1749220271459,-239.4279877,0.0003064,7]
[364726636,1749220271469,-186.88884126,0.0003064,7]
[364726637,1749220271478,-150.0,0.00030646,7]
[364726638,1749220271488,-239.4279877,0.00030653,7]
[364726639,1749220271498,-186.88884126,0.00030653,7]
[364726640,1749220271508,-169.543339,0.00030657,7]
[364726641,1749220271519,-151.0,0.00030657,7]
[364726642,1749220271528,-151.0,0.00030657,7]
[364726643,1749220271538,-151.0,0.00030657,7]
[364726644,1749220271547,-177.9078,0.00030657,7]
[364726645,1749220271557,-210.982028,0.00030657,7]
[364726646,1749220271567,-210.982028,0.00030657,7]
[364726647,1749220271576,-151.0,0.00030657,7]
[364726648,1749220271586,-151.0,0.00030657,7]
[364726649,1749220271595,-164.396546,0.00030657,7]
[364726650,1749220271605,-164.396546,0.00030657,7]
[364726651,1749220271615,-151.0,0.00030657,7]
[364726652,1749220271625,-151.0,0.00030657,7]
[364726653,1749220271635,-151.0,0.00030657,7]
[364726654,1749220271645,-173.795224,0.00030657,7]
[364726655,1749220271655,-173.795224,0.00030657,7]
[364726656,1749220271665,-165.046603,0.00030657,7]
[364726657,1749220271674,-151.0,0.00030657,7]
[364726658,1749220271684,-165.046603,0.00030657,7]
[364726659,1749220271697,-178.626492,0.00030657,7]
[364726660,1749220271708,-178.626492,0.00030657,7]
[364726661,1749220271718,-1360.080029,0.00030657,7]
[364726662,1749220271728,-1360.080029,0.00030657,7]
[364726663,1749220271739,-151.0,0.00030657,7]
[364726664,1749220271748,-2222.878919,0.00030657,7]
[364726665,1749220271758,-151.0,0.00030657,7]
[364726666,1749220271768,-2069.069336,0.00030657,7]
[364726667,1749220271778,-151.0,0.00030657,7]
[364726668,1749220271788,-242.735552,0.00030657,7]
[364726669,1749220271797,-242.735552,0.00030657,7]
[364726670,1749220271807,-151.0,0.00030657,7]
[364726671,1749220271817,-151.0,0.00030657,7]
[364726672,1749220271827,-839.7152,0.00030657,7]